fUST/lending_fUST_20250724
["ID","MTS","AMOUNT","RATE_DAILY","PERIOD"]
[374602368,1753371044903,-460.0,0.00020602,2]
[374602371,1753371044913,-460.0,0.00020604,2]
[374602373,1753371044922,-1128.88,0.00020604,2]
[374602375,1753371044932,-460.0,0.00020604,2]
[374602377,1753371044942,-460.0,0.00020604,2]
[374602379,1753371044950,-460.0,0.00020604,2]
[374602381,1753371044960,-460.0,0.00020604,2]
[374602383,1753371044969,-676.99,0.00020604,2]
[374602385,1753371044979,-460.0,0.00020604,2]
[374602387,1753371044988,-305.42983637,0.00020604,2]
[374602389,1753371044998,-460.0,0.00020604,2]
[374602391,1753371045008,-514.89,0.00020604,2]
[374602393,1753371045018,-460.0,0.00020604,2]
[374602395,1753371045029,-4513.08,0.00020604,2]
[374602396,1753371045040,-460.0,0.00020604,2]
[374602398,1753371045051,-460.0,0.00020604,2]
[374602401,1753371045061,-528.37,0.00020604,2]
[374602403,1753371045071,-824.6,0.00020604,2]
[374602405,1753371045081,-600.32473052,0.00020605,2]
[374602406,1753371045091,-460.0,0.00020605,2]
[374602408,1753371045100,-460.0,0.00020605,2]
[374602410,1753371045109,-460.0,0.00020605,2]
[374602413,1753371045119,-460.0,0.00020605,2]
[374602416,1753371045129,-460.0,0.00020605,2]
[374602418,1753371045139,-460.0,0.00020605,2]
[374602420,1753371045149,-460.0,0.00020605,2]
[374602422,1753371045159,-460.0,0.00020605,2]
[374602424,1753371045169,-460.0,0.00020605,2]
[374602426,1753371045179,-460.0,0.00020605,2]
[374602428,1753371045188,-460.0,0.00020605,2]
[374602430,1753371045198,-460.0,0.00020605,2]
[374602432,1753371045208,-460.0,0.00020605,2]
[374602434,1753371045217,-460.0,0.00020605,2]
[374602436,1753371045227,-1422.3,0.00020605,2]
[374602449,1753371045341,-524.6,0.00020605,2]
[374602451,1753371045352,-460.0,0.00020605,2]
[374602453,1753371045362,-460.0,0.00020605,2]
[374602455,1753371045372,-460.0,0.00020605,2]
[374602457,1753371045381,-460.0,0.00020605,2]
[374602458,1753371045391,-460.0,0.00020605,2]
[374602461,1753371045401,-460.0,0.00020605,2]
[374602462,1753371045410,-1053.66,0.00020605,2]
[374602465,1753371045421,-460.0,0.00020605,2]
[374602466,1753371045430,-460.0,0.00020605,2]
[374602468,1753371045440,-489.95,0.00020605,2]
[374602470,1753371045449,-460.0,0.00020605,2]
[374602471,1753371045459,-460.0,0.00020605,2]
[374602473,1753371045468,-1868.57,0.00020605,2]
[374602475,1753371045479,-460.0,0.00020605,2]
[374602477,1753371045488,-1108.92,0.00020605,2]
[374602479,1753371045499,-460.0,0.00020605,2]
[374602481,1753371045508,-460.0,0.00020605,2]
[374602483,1753371045518,-460.0,0.00020605,2]
[374602485,1753371045527,-678.6,0.00020605,2]
[374602487,1753371045539,-152.13470352,0.00020605,2]
[374602489,1753371045550,-2149.65,0.00020605,2]
[374602490,1753371045560,-460.0,0.00020605,2]
[374602493,1753371045576,-460.0,0.00020605,2]
[374602496,1753371045591,-703.72,0.00020605,2]
[374602499,1753371045601,-460.0,0.00020607,2]
[374602501,1753371045610,-460.0,0.00020607,2]
[374602503,1753371045619,-460.0,0.00020607,2]
[374602505,1753371045628,-460.0,0.00020608,2]
[374602507,1753371045638,-460.0,0.00020608,2]
[374602508,1753371045647,-460.0,0.00020608,2]
[374602509,1753371045658,-460.0,0.00020608,2]
[374602510,1753371045667,-460.0,0.00020608,2]
[374602511,1753371045677,-460.0,0.00020608,2]
[374602512,1753371045687,-460.0,0.00020608,2]
[374602513,1753371045696,-460.0,0.00020608,2]
[374602514,1753371045705,-458.03268078,0.00020608,2]
[374602515,1753371045715,-431.08721199,0.00020608,2]
[374602516,1753371045725,-460.0,0.00020608,2]
[374602517,1753371045735,-385.76382827,0.00020608,2]
[374602518,1753371045745,-460.0,0.00020608,2]
[374602519,1753371045755,-460.0,0.00020608,2]
[374602520,1753371045764,-1445.4478119,0.00020669,2]
[374602522,1753371045773,-151.0,0.000207,4]
[374602524,1753371045784,-460.0,0.00020703,2]
[374602525,1753371045793,-460.0,0.00020703,2]
[374602526,1753371045803,-460.0,0.00020703,2]
[374602527,1753371045813,-868.3,0.00020709,2]
[374602529,1753371045823,-476.79463412,0.00020732,2]
[374602530,1753371045832,-215.88777038,0.00020732,2]
[374602531,1753371045842,-12624.810388,0.00020732,2]
[374602532,1753371045852,-214.7213231,0.00020732,2]
[374602533,1753371045861,-160.0,0.00020732,2]
[374602535,1753371045871,-160.0,0.00020732,2]
[374602536,1753371045881,-840.23756827,0.00020732,2]
[374602538,1753371045891,-160.0,0.00020732,2]
[374602539,1753371045900,-160.0,0.00020742,2]
[374602541,1753371045910,-231.16387093,0.00020742,2]
[374602542,1753371045919,-526.24749348,0.00020742,2]
[374602544,1753371045928,-160.0,0.00020742,2]
[374602545,1753371045937,-160.0,0.00020742,2]
[374602546,1753371045947,-160.0,0.00020742,2]
[374602548,1753371045956,-160.0,0.00020742,2]
[374602549,1753371045966,-171.57040078,0.00020778,2]
[374602551,1753371045975,-160.0,0.00020818,2]
[374602553,1753371045984,-460.0,0.00020875,2]
[374602554,1753371045994,-460.0,0.00020876,2]
[374602556,1753371046004,-460.0,0.00020876,2]
[374602557,1753371046013,-460.0,0.00020876,2]
[374602559,1753371046023,-1113.87,0.00020876,2]
[374602561,1753371046034,-2887.51,0.00020876,2]
[374602562,1753371046044,-460.0,0.00020876,2]
[374602563,1753371046054,-820.25,0.00020876,2]
[374602564,1753371046064,-1954.28,0.00020876,2]
[374602566,1753371046074,-1097.3,0.00020876,2]
[374602567,1753371046083,-460.0,0.00020876,2]
[374602569,1753371046093,-3286.2022343,0.00020877,2]
[374602570,1753371046102,-1128.88,0.00020878,2]
[374602572,1753371046112,-460.0,0.00020878,2]
[374602573,1753371046122,-460.0,0.00020878,2]
[374602575,1753371046132,-460.0,0.00020878,2]
[374602576,1753371046141,-460.0,0.00020878,2]
[374602578,1753371046150,-676.99,0.00020878,2]
[374602579,1753371046160,-460.0,0.00020878,2]
[374602581,1753371046170,-460.0,0.00020878,2]
[374602582,1753371046179,-514.89,0.00020878,2]
[374602584,1753371046189,-460.0,0.00020878,2]
[374602586,1753371046198,-4513.08,0.00020878,2]
[374602587,1753371046208,-460.0,0.00020878,2]
[374602589,1753371046217,-460.0,0.00020878,2]
[374602590,1753371046226,-528.37,0.00020878,2]
[374602592,1753371046236,-824.6,0.00020878,2]
[374602593,1753371046245,-460.0,0.00020879,2]
[374602595,1753371046255,-460.0,0.00020879,2]
[374602596,1753371046264,-460.0,0.00020879,2]
[374602598,1753371046274,-460.0,0.00020879,2]
[374602600,1753371046283,-460.0,0.00020879,2]
[374602601,1753371046292,-460.0,0.00020879,2]
[374602603,1753371046302,-460.0,0.00020879,2]
[374602604,1753371046311,-460.0,0.00020879,2]
[374602606,1753371046321,-460.0,0.00020879,2]
[374602607,1753371046331,-460.0,0.00020879,2]
[374602609,1753371046340,-1422.3,0.00020879,2]
[374602610,1753371046350,-524.6,0.00020879,2]
[374602612,1753371046359,-460.0,0.00020879,2]
[374602613,1753371046368,-460.0,0.00020879,2]
[374602615,1753371046378,-460.0,0.00020879,2]
[374602617,1753371046387,-460.0,0.00020879,2]
[374602618,1753371046397,-502.02656241,0.00020879,2]
[374602620,1753371046407,-460.0,0.00020879,2]
[374602621,1753371046416,-1053.66,0.00020879,2]
[374602623,1753371046426,-460.0,0.00020879,2]
[374602625,1753371046435,-460.0,0.00020879,2]
[374602626,1753371046445,-489.95,0.00020879,2]
[374602628,1753371046457,-460.0,0.00020879,2]
[374602629,1753371046467,-460.0,0.00020879,2]
[374602631,1753371046477,-1868.57,0.00020879,2]
[374602633,1753371046487,-460.0,0.00020879,2]
[374602634,1753371046497,-1108.92,0.00020879,2]
[374602636,1753371046507,-460.0,0.00020879,2]
[374602637,1753371046515,-587.05899473,0.00020879,2]
[374602639,1753371046525,-460.0,0.00020879,2]
[374602641,1753371046537,-678.6,0.00020879,2]
[374602642,1753371046547,-2149.65,0.00020879,2]
[374602644,1753371046556,-460.0,0.00020879,2]
[374602646,1753371046566,-460.0,0.00020879,2]
[374602647,1753371046575,-703.72,0.00020879,2]
[374602649,1753371046587,-460.0,0.00020881,2]
[374602650,1753371046597,-460.0,0.00020881,2]
[374602652,1753371046606,-460.0,0.00020882,2]
[374602654,1753371046616,-460.0,0.00020882,2]
[374602655,1753371046626,-460.0,0.00020882,2]
[374602657,1753371046635,-460.0,0.00020882,2]
[374602658,1753371046644,-460.0,0.00020882,2]
[374602660,1753371046655,-460.0,0.00020882,2]
[374602661,1753371046665,-258.79957784,0.00020882,2]
[374602663,1753371046675,-460.0,0.00020882,2]
[374602665,1753371046684,-460.0,0.00020882,2]
[374602666,1753371046693,-460.0,0.00020882,2]
[374602668,1753371046702,-460.0,0.00020882,2]
[374602669,1753371046712,-1107.44677452,0.000209,4]
[374602671,1753371046722,-500.0,0.00020912,2]
[374602672,1753371046731,-500.0,0.00020927,2]
[374602674,1753371046740,-864.985,0.00020954,2]
[374602676,1753371046750,-178.70934786,0.00020954,2]
[374602677,1753371046759,-460.0,0.00020977,2]
[374602679,1753371046768,-460.0,0.00020977,2]
[374602680,1753371046777,-424.03,0.00020977,2]
[374602682,1753371046788,-868.3,0.00020983,2]
[374602684,1753371046797,-741.14122082,0.00021,2]
[374602685,1753371046807,-17547.71758048,0.00021,3]
[374602687,1753371046816,-12624.810388,0.00021,3]
[374602688,1753371046825,-1107.44677433,0.00021038,4]
[374602690,1753371046835,-1445.4478119,0.00021056,2]
[374602691,1753371046844,-500.0,0.00021073,2]
[374602693,1753371046854,-500.0,0.00021073,2]
[374602695,1753371046863,-500.0,0.00021119,2]
[374602696,1753371046873,-505.7834431,0.00021133,2]
[374602698,1753371046882,-500.0,0.00021133,2]
[374602699,1753371046891,-265.31149077,0.00021133,2]
[374602701,1753371046901,-460.0,0.0002115,2]
[374602703,1753371046910,-460.0,0.0002115,2]
[374602704,1753371046919,-460.0,0.0002115,2]
[374602706,1753371046928,-1113.87,0.0002115,2]
[374602707,1753371046939,-2887.51,0.0002115,2]
[374602709,1753371046948,-820.25,0.0002115,2]
[374602711,1753371046958,-1954.28,0.0002115,2]
[374602712,1753371046968,-1097.3,0.0002115,2]
[374602714,1753371046977,-460.0,0.0002115,2]
[374602715,1753371046987,-1128.88,0.00021152,2]
[374602717,1753371046996,-460.0,0.00021152,2]
[374602719,1753371047007,-460.0,0.00021152,2]
[374602720,1753371047017,-460.0,0.00021152,2]
[374602722,1753371047027,-562.42767198,0.00021152,2]
[374602723,1753371047037,-676.99,0.00021152,2]
[374602725,1753371047047,-460.0,0.00021152,2]
[374602727,1753371047057,-460.0,0.00021152,2]
[374602728,1753371047068,-514.89,0.00021152,2]
[374602730,1753371047077,-460.0,0.00021152,2]
[374602731,1753371047087,-4513.08,0.00021152,2]
[374602733,1753371047096,-460.0,0.00021152,2]
[374602735,1753371047106,-460.0,0.00021152,2]
[374602736,1753371047115,-528.37,0.00021152,2]
[374602738,1753371047125,-824.6,0.00021152,2]
[374602739,1753371047138,-209.59757342,0.00021153,2]
[374602741,1753371047147,-460.0,0.00021153,2]
[374602743,1753371047157,-460.0,0.00021153,2]
[374602744,1753371047168,-460.0,0.00021153,2]
[374602746,1753371047178,-438.74,0.00021153,2]
[374602748,1753371047188,-460.0,0.00021153,2]
[374602749,1753371047198,-459.84,0.00021153,2]
[374602751,1753371047209,-1422.3,0.00021153,2]
[374602752,1753371047219,-524.6,0.00021153,2]
[374602754,1753371047229,-460.0,0.00021153,2]
[374602756,1753371047240,-460.0,0.00021153,2]
[374602757,1753371047250,-460.0,0.00021153,2]
[374602759,1753371047260,-460.0,0.00021153,2]
[374602761,1753371047270,-1053.66,0.00021153,2]
[374602762,1753371047280,-460.0,0.00021153,2]
[374602763,1753371047291,-460.0,0.00021153,2]
[374602764,1753371047299,-489.95,0.00021153,2]
[374602765,1753371047309,-460.0,0.00021153,2]
[374602766,1753371047319,-1868.57,0.00021153,2]
[374602767,1753371047328,-460.0,0.00021153,2]
[374602768,1753371047338,-1108.92,0.00021153,2]
[374602769,1753371047348,-460.0,0.00021153,2]
[374602770,1753371047359,-678.6,0.00021153,2]
[374602771,1753371047370,-460.0,0.00021153,2]
[374602772,1753371047380,-2149.65,0.00021153,2]
[374602773,1753371047390,-460.0,0.00021153,2]
[374602774,1753371047400,-460.0,0.00021153,2]
[374602775,1753371047409,-703.72,0.00021153,2]
[374602776,1753371047419,-460.0,0.00021155,2]
[374602777,1753371047428,-460.0,0.00021155,2]
[374602778,1753371047439,-311.94360507,0.00021156,2]
[374602779,1753371047449,-175.58,0.00021156,2]
[374602780,1753371047459,-460.0,0.00021156,2]
[374602781,1753371047468,-460.0,0.00021156,2]
[374602782,1753371047478,-460.0,0.00021156,2]
[374602783,1753371047487,-460.0,0.00021156,2]
[374602785,1753371047496,-460.0,0.00021156,2]
[374602786,1753371047505,-460.0,0.00021156,2]
[374602788,1753371047514,-460.0,0.00021156,2]
[374602790,1753371047523,-1107.44677433,0.00021176,4]
[374602791,1753371047534,-247.0,0.00021248,2]
[374602793,1753371047544,-420.0,0.00021248,2]
[374602797,1753371047645,-460.0,0.00021251,2]
[374602798,1753371047656,-460.0,0.00021251,2]
[374602799,1753371047665,-868.3,0.00021257,2]
[374602800,1753371047675,-500.0,0.00021261,2]
[374602801,1753371047686,-500.0,0.00021285,2]
[374602802,1753371047696,-500.0,0.00021285,2]
[374602803,1753371047706,-500.0,0.00021285,2]
[374602804,1753371047715,-500.0,0.00021285,2]
[374602805,1753371047725,-1107.44677433,0.00021314,5]
[374602806,1753371047734,-1680.0,0.00021351,2]
[374602807,1753371047744,-260.0,0.00021366,2]
[374602808,1753371047754,-460.0,0.00021424,2]
[374602809,1753371047764,-460.0,0.00021424,2]
[374602810,1753371047774,-460.0,0.00021424,2]
[374602811,1753371047784,-1113.87,0.00021424,2]
[374602812,1753371047794,-2887.51,0.00021424,2]
[374602813,1753371047804,-820.25,0.00021424,2]
[374602814,1753371047813,-1954.28,0.00021424,2]
[374602815,1753371047823,-1097.3,0.00021424,2]
[374602816,1753371047832,-460.0,0.00021424,2]
[374602817,1753371047842,-1128.88,0.00021426,2]
[374602818,1753371047851,-460.0,0.00021426,2]
[374602819,1753371047861,-460.0,0.00021426,2]
[374602820,1753371047871,-423.20922546,0.00021426,2]
[374602821,1753371047880,-676.99,0.00021426,2]
[374602822,1753371047890,-460.0,0.00021426,2]
[374602823,1753371047899,-460.0,0.00021426,2]
[374602824,1753371047910,-514.89,0.00021426,2]
[374602825,1753371047919,-460.0,0.00021426,2]
[374602826,1753371047928,-4513.08,0.00021426,2]
[374602827,1753371047938,-460.0,0.00021426,2]
[374602828,1753371047947,-460.0,0.00021426,2]
[374602829,1753371047957,-528.37,0.00021426,2]
[374602830,1753371047967,-824.6,0.00021426,2]
[374602831,1753371047976,-460.0,0.00021427,2]
[374602832,1753371047985,-460.0,0.00021427,2]
[374602833,1753371047995,-460.0,0.00021427,2]
[374602834,1753371048005,-460.0,0.00021427,2]
[374602835,1753371048014,-1422.3,0.00021427,2]
[374602836,1753371048023,-524.6,0.00021427,2]
[374602837,1753371048035,-460.0,0.00021427,2]
[374602838,1753371048046,-460.0,0.00021427,2]
[374602839,1753371048056,-460.0,0.00021427,2]
[374602840,1753371048066,-460.0,0.00021427,2]
[374602841,1753371048076,-1053.66,0.00021427,2]
[374602842,1753371048086,-460.0,0.00021427,2]
[374602843,1753371048096,-227.71355945,0.00021427,2]
[374602844,1753371048105,-489.95,0.00021427,2]
[374602845,1753371048115,-460.0,0.00021427,2]
[374602846,1753371048125,-1868.57,0.00021427,2]
[374602847,1753371048135,-460.0,0.00021427,2]
[374602848,1753371048145,-1108.92,0.00021427,2]
[374602849,1753371048155,-352.7,0.00021427,2]
[374602850,1753371048165,-678.6,0.00021427,2]
[374602851,1753371048175,-460.0,0.00021427,2]
[374602852,1753371048185,-2149.65,0.00021427,2]
[374602853,1753371048195,-460.0,0.00021427,2]
[374602854,1753371048205,-460.0,0.00021427,2]
[374602855,1753371048215,-703.72,0.00021427,2]
[374602856,1753371048224,-474.50503943,0.00021429,2]
[374602857,1753371048234,-460.0,0.00021429,2]
[374602858,1753371048244,-152.61,0.0002143,2]
[374602859,1753371048254,-460.0,0.0002143,2]
[374602860,1753371048264,-460.0,0.0002143,2]
[374602861,1753371048274,-460.0,0.0002143,2]
[374602862,1753371048285,-460.0,0.0002143,2]
[374602863,1753371048295,-460.0,0.0002143,2]
[374602864,1753371048304,-1107.44677433,0.00021452,5]
[374602865,1753371048315,-1113.72738664,0.0002146,2]
[374602866,1753371048325,-500.0,0.00021475,2]
[374602867,1753371048335,-460.0,0.00021525,2]
[374602868,1753371048345,-446.3261383,0.00021525,2]
[374602869,1753371048355,-868.3,0.00021531,2]
[374602870,1753371048365,-1107.44677433,0.0002159,5]
[374602871,1753371048375,-526.12808574,0.00021681,2]
[374602872,1753371048384,-500.0,0.00021696,2]
[374602873,1753371048395,-576.96083341,0.00021698,2]
[374602874,1753371048405,-460.0,0.00021698,2]
[374602875,1753371048415,-454.21,0.00021698,2]
[374602876,1753371048425,-1113.87,0.00021698,2]
[374602877,1753371048434,-2887.51,0.00021698,2]
[374602878,1753371048445,-820.25,0.00021698,2]
[374602879,1753371048455,-1954.28,0.00021698,2]
[374602880,1753371048465,-1097.3,0.00021698,2]
[374602881,1753371048475,-460.0,0.00021698,2]
[374602882,1753371048485,-1128.88,0.000217,2]
[374602883,1753371048495,-460.0,0.000217,2]
[374602884,1753371048505,-460.0,0.000217,2]
[374602885,1753371048515,-676.99,0.000217,2]
[374602886,1753371048526,-460.0,0.000217,2]
[374602887,1753371048538,-460.0,0.000217,2]
[374602888,1753371048548,-514.89,0.000217,2]
[374602889,1753371048557,-460.0,0.000217,2]
[374602890,1753371048567,-4513.08,0.000217,2]
[374602891,1753371048578,-460.0,0.000217,2]
[374602892,1753371048588,-460.0,0.000217,2]
[374602893,1753371048598,-528.37,0.000217,2]
[374602894,1753371048607,-406.80181216,0.000217,2]
[374602895,1753371048628,-417.79818784,0.000217,2]
[374602896,1753371048638,-588.03,0.00021701,2]
[374602897,1753371048648,-460.0,0.00021701,2]
[374602898,1753371048658,-460.0,0.00021701,2]
[374602899,1753371048667,-460.0,0.00021701,2]
[374602900,1753371048677,-1422.3,0.00021701,2]
[374602901,1753371048687,-524.6,0.00021701,2]
[374602902,1753371048696,-460.0,0.00021701,2]
[374602903,1753371048706,-460.0,0.00021701,2]
[374602904,1753371048716,-460.0,0.00021701,2]
[374602905,1753371048726,-460.0,0.00021701,2]
[374602906,1753371048736,-1053.66,0.00021701,2]
[374602907,1753371048746,-460.0,0.00021701,2]
[374602908,1753371048755,-489.95,0.00021701,2]
[374602909,1753371048765,-460.0,0.00021701,2]
[374602910,1753371048775,-1868.57,0.00021701,2]
[374602911,1753371048785,-460.0,0.00021701,2]
[374602912,1753371048795,-1108.92,0.00021701,2]
[374602913,1753371048805,-678.6,0.00021701,2]
[374602914,1753371048814,-460.0,0.00021701,2]
[374602915,1753371048824,-2149.65,0.00021701,2]
[374602916,1753371048833,-550.92734134,0.00021701,2]
[374602917,1753371048843,-460.0,0.00021701,2]
[374602918,1753371048853,-703.72,0.00021701,2]
[374602919,1753371048862,-510.64774941,0.00021704,2]
[374602920,1753371048872,-460.0,0.00021704,2]
[374602921,1753371048881,-460.0,0.00021704,2]
[374602922,1753371048891,-460.0,0.00021704,2]
[374602923,1753371048900,-460.0,0.00021704,2]
[374602924,1753371048910,-1107.44677433,0.00021728,5]
[374602925,1753371048920,-877.72466876,0.00021739,2]
[374602926,1753371048929,-500.0,0.00021743,2]
[374602927,1753371048939,-460.0,0.00021799,2]
[374602928,1753371048949,-868.3,0.00021805,2]
[374602929,1753371048959,-1000.0,0.00021833,2]
[374602930,1753371048968,-500.0,0.00021833,2]
[374602931,1753371048977,-1000.0,0.00021833,2]
[374602932,1753371048987,-1107.44677433,0.00021866,6]
[374602933,1753371048997,-284.90544308,0.00021908,2]
[374602934,1753371049007,-500.0,0.00021908,2]
[374602935,1753371049016,-360.0,0.00021914,2]
[374602936,1753371049026,-1113.87,0.00021972,2]
[374602937,1753371049037,-2887.51,0.00021972,2]
[374602938,1753371049047,-820.25,0.00021972,2]
[374602939,1753371049058,-1954.28,0.00021972,2]
[374602940,1753371049068,-1097.3,0.00021972,2]
[374602941,1753371049078,-460.0,0.00021972,2]
[374602942,1753371049088,-1128.88,0.00021974,2]
[374602943,1753371049098,-460.0,0.00021974,2]
[374602944,1753371049108,-460.0,0.00021974,2]
[374602945,1753371049118,-676.99,0.00021974,2]
[374602946,1753371049129,-460.0,0.00021974,2]
[374602947,1753371049139,-460.0,0.00021974,2]
[374602948,1753371049149,-514.89,0.00021974,2]
[374602949,1753371049159,-460.0,0.00021974,2]
[374602950,1753371049169,-4513.08,0.00021974,2]
[374602951,1753371049179,-279.84561733,0.00021974,2]
[374602952,1753371049189,-460.0,0.00021974,2]
[374602953,1753371049199,-528.37,0.00021974,2]
[374602954,1753371049209,-824.6,0.00021974,2]
[374602955,1753371049218,-460.0,0.00021975,2]
[374602956,1753371049228,-460.0,0.00021975,2]
[374602957,1753371049239,-1422.3,0.00021975,2]
[374602958,1753371049249,-524.6,0.00021975,2]
[374602959,1753371049258,-460.0,0.00021975,2]
[374602960,1753371049267,-460.0,0.00021975,2]
[374602961,1753371049277,-460.0,0.00021975,2]
[374602962,1753371049288,-460.0,0.00021975,2]
[374602963,1753371049298,-1053.66,0.00021975,2]
[374602964,1753371049308,-499.56,0.00021975,2]
[374602965,1753371049318,-489.95,0.00021975,2]
[374602966,1753371049327,-460.0,0.00021975,2]
[374602967,1753371049337,-1868.57,0.00021975,2]
[374602968,1753371049347,-460.0,0.00021975,2]
[374602969,1753371049357,-1108.92,0.00021975,2]
[374602970,1753371049367,-678.6,0.00021975,2]
[374602971,1753371049376,-2149.65,0.00021975,2]
[374602972,1753371049386,-460.0,0.00021975,2]
[374602973,1753371049396,-703.72,0.00021975,2]
[374602974,1753371049405,-460.0,0.00021978,2]
[374602975,1753371049415,-460.0,0.00021978,2]
[374602976,1753371049425,-460.0,0.00021978,2]
[374602977,1753371049435,-460.0,0.00021978,2]
[374602978,1753371049444,-2282.5,0.00022,7]
[374602979,1753371049454,-4255.58,0.00022,7]
[374602980,1753371049463,-23546.92,0.00022,2]
[374602981,1753371049473,-173.0,0.00022,2]
[374602982,1753371049483,-1724.36,0.00022,7]
[374602983,1753371049493,-173.0,0.00022,2]
[374602984,1753371049502,-166.67,0.00022,2]
[374602985,1753371049512,-1107.44677433,0.00022003,6]
[374602986,1753371049522,-460.0,0.00022073,2]
[374602987,1753371049531,-868.3,0.00022079,2]
[374602988,1753371049541,-1364.01047489,0.00022104,2]
[374602989,1753371049551,-1107.44677433,0.00022141,6]
[374602990,1753371049561,-584.1906883,0.00022173,2]
[374602991,1753371049571,-1113.87,0.00022246,2]
[374602992,1753371049584,-2887.51,0.00022246,2]
[374602993,1753371049594,-820.25,0.00022246,2]
[374602994,1753371049604,-1954.28,0.00022246,2]
[374602995,1753371049613,-1097.3,0.00022246,2]
[374602996,1753371049623,-460.0,0.00022246,2]
[374602997,1753371049633,-1128.88,0.00022248,2]
[374602998,1753371049643,-460.0,0.00022248,2]
[374602999,1753371049652,-460.0,0.00022248,2]
[374603000,1753371049663,-676.99,0.00022248,2]
[374603001,1753371049672,-460.0,0.00022248,2]
[374603002,1753371049682,-514.89,0.00022248,2]
[374603003,1753371049692,-460.0,0.00022248,2]
[374603004,1753371049789,-4513.08,0.00022248,2]
[374603005,1753371049799,-460.0,0.00022248,2]
[374603006,1753371049809,-528.37,0.00022248,2]
[374603007,1753371049819,-824.6,0.00022248,2]
[374603008,1753371049828,-460.0,0.00022249,2]
[374603009,1753371049838,-460.0,0.00022249,2]
[374603010,1753371049848,-1422.3,0.00022249,2]
[374603011,1753371049857,-524.6,0.00022249,2]
[374603012,1753371049867,-460.0,0.00022249,2]
[374603013,1753371049877,-460.0,0.00022249,2]
[374603014,1753371049886,-460.0,0.00022249,2]
[374603015,1753371049896,-460.0,0.00022249,2]
[374603016,1753371049906,-1053.66,0.00022249,2]
[374603017,1753371049916,-489.95,0.00022249,2]
[374603018,1753371049925,-460.0,0.00022249,2]
[374603019,1753371049935,-1868.57,0.00022249,2]
[374603020,1753371049945,-460.0,0.00022249,2]
[374603021,1753371049955,-1108.92,0.00022249,2]
[374603022,1753371049964,-678.6,0.00022249,2]
[374603023,1753371049973,-2149.65,0.00022249,2]
[374603024,1753371049983,-460.0,0.00022249,2]
[374603025,1753371049993,-703.72,0.00022249,2]
[374603026,1753371050003,-460.0,0.00022252,2]
[374603027,1753371050012,-460.0,0.00022252,2]
[374603028,1753371050022,-460.0,0.00022252,2]
[374603029,1753371050032,-1107.44677433,0.00022279,6]
[374603030,1753371050042,-503.76840278,0.00022291,2]
[374603031,1753371050052,-500.0,0.00022324,2]
[374603032,1753371050062,-460.0,0.00022347,2]
[374603033,1753371050072,-868.3,0.00022353,2]
[374603034,1753371050081,-1500.0,0.00022381,2]
[374603035,1753371050091,-4000.0,0.00022381,4]
[374603036,1753371050100,-518.04297224,0.0002239,2]